bitfinex-derivatives/quotes_SOLF0:USTF0_20260204
["timestamp","ask_amount","ask_price","bid_price","bid_amount"]
[1770235894971,9.628,93.656,93.609,26.74100307]
[1770235895671,27.52527698,93.655,93.588,9.6349]
[1770235895868,27.52527698,93.655,93.589,26.74100307]
[1770235896568,9.6297,93.639,93.589,26.74100307]
[1770235896768,27.52527698,93.639,93.55,408.44304315]
[1770235896971,27.52527698,93.639,93.55,435.18404622]
[1770235897374,27.52527698,93.639,93.562,26.74100307]
[1770235898374,9.6313,93.624,93.566,26.74100307]
[1770235899465,9.6303,93.634,93.566,26.74100307]
[1770235899968,27.52527698,93.641,93.566,26.74100307]
[1770235900168,27.52527698,93.641,93.553,1.85907367]
[1770235900169,27.52527698,93.659,93.588,26.74100307]
[1770235900680,27.52527698,93.67,93.595,26.74100307]
[1770235901369,9.6277,93.659,93.595,26.74100307]
[1770235901566,9.6277,93.659,93.536,19.8212185]
[1770235901567,27.52527698,93.658,93.574,26.74100307]
[1770235902074,9.6314,93.623,93.554,26.74100307]
[1770235902375,27.52527698,93.628,93.534,26.74100307]
[1770235902567,9.6342,93.595,93.534,26.74100307]
[1770235903371,9.6352,93.586,93.534,26.74100307]
[1770235904171,9.6361,93.577,93.534,26.74100307]
[1770235904976,9.6361,93.577,93.515,26.74100307]
[1770235905174,9.6361,93.577,93.466,19.8212185]
[1770235905175,9.638,93.558,93.495,26.74100307]
[1770235905372,27.52527698,93.557,93.495,26.74100307]
[1770235905869,9.6369,93.569,93.512,26.74100307]
[1770235906072,27.52527698,93.581,93.512,26.74100307]
[1770235906268,27.52527698,93.558,93.493,26.74100307]
[1770235907972,9.6401,93.538,93.473,26.74100307]
[1770235908573,27.52527698,93.539,93.473,26.74100307]
[1770235909473,37.16527698,93.539,93.473,26.74100307]
[1770235910072,37.16527698,93.539,93.476,26.74100307]
[1770235910273,9.639,93.549,93.476,26.74100307]
[1770235910470,27.52527698,93.559,93.487,9.6453]
[1770235910675,27.52527698,93.559,93.488,26.74100307]
[1770235911174,9.6382,93.557,93.489,9.645]
[1770235911474,27.52527698,93.578,93.49,26.74100307]
[1770235911674,27.52527698,93.578,93.516,26.74100307]
[1770235911878,27.52527698,93.602,93.516,26.74100307]
[1770235912277,9.6341,93.596,93.527,26.74100307]
[1770235913671,9.6351,93.586,93.527,26.74100307]
[1770235914375,27.52527698,93.602,93.501,24.08078397]
[1770235916178,9.6365,93.573,93.502,24.08078397]
[1770235917581,22.55660746,93.583,93.504,24.08078397]
[1770235917582,9.6375,93.563,93.504,24.08078397]
[1770235918176,9.6365,93.573,93.504,24.08078397]
[1770235918685,22.55660746,93.583,93.504,24.08078397]
[1770235919178,9.6358,93.58,93.517,22.2219562]
[1770235919682,9.6381,93.557,93.499,22.2219562]
[1770235920586,22.86994933,93.629,93.511,22.2219562]
[1770235921585,22.86994933,93.597,93.511,22.2219562]
[1770235922082,9.6385,93.554,93.511,22.2219562]
[1770235922283,22.86994933,93.569,93.493,22.2219562]
[1770235922985,9.6374,93.565,93.503,9.6436]
[1770235923381,22.86994933,93.589,93.504,22.2219562]
[1770235923582,9.6362,93.576,93.519,9.6419]
[1770235923780,9.6362,93.576,93.504,22.2219562]
[1770235923977,22.86994933,93.589,93.504,22.2219562]
[1770235924584,9.6372,93.567,93.504,22.2219562]
[1770235924990,22.86994933,93.589,93.504,22.2219562]
[1770235925580,22.86994933,93.607,93.521,22.2219562]
[1770235926190,22.86994933,93.605,93.544,31.8614562]
[1770235926381,22.86994933,93.605,93.544,22.2219562]
[1770235926889,9.6348,93.59,93.544,22.2219562]
[1770235927089,22.86994933,93.605,93.544,22.2219562]
[1770235927590,9.635,93.588,93.544,22.2219562]
[1770235928085,22.86994933,93.605,93.544,22.2219562]
[1770235928291,9.6359,93.579,93.524,22.2219562]
[1770235928589,22.86994933,93.586,93.524,22.2219562]
[1770235929792,9.6353,93.585,93.533,9.6406]
[1770235929991,22.86994933,93.586,93.533,9.6406]
[1770235930493,22.86994933,93.606,93.538,22.2219562]
[1770235930786,9.6335,93.603,93.539,9.6399]
[1770235930990,22.86994933,93.606,93.54,22.2219562]
[1770235931186,22.86994933,93.641,93.54,22.2219562]
[1770235931391,9.6315,93.622,93.561,9.6376]
[1770235931588,22.86994933,93.641,93.521,22.2219562]
[1770235932792,9.6331,93.606,93.55,22.2219562]
[1770235935786,22.86994933,93.623,93.55,22.2219562]
[1770235936689,9.634,93.598,93.55,22.2219562]
[1770235936886,22.86994933,93.623,93.531,22.2219562]
[1770235937391,9.6348,93.59,93.535,9.6403]
[1770235937894,9.6348,93.59,93.536,22.2219562]
[1770235938492,22.86994933,93.596,93.541,9.6397]
[1770235938884,9.6343,93.595,93.536,22.2219562]
[1770235939294,22.86994933,93.596,93.536,22.2219562]
[1770235939594,9.6351,93.587,93.536,22.2219562]
[1770235940793,9.6351,93.587,93.537,22.2219562]
[1770235941096,22.86994933,93.613,93.537,22.2219562]
[1770235941894,22.86994933,93.613,93.555,22.2219562]
[1770235942282,22.86994933,93.63,93.555,22.2219562]
[1770235942484,22.86994933,93.63,93.54,17.89945328]
[1770235942485,22.86994933,93.666,93.571,22.2219562]
[1770235943791,9.6298,93.638,93.581,28.83452157]
[1770235944195,9.6307,93.63,93.581,19.19892157]
[1770235944597,19.94580285,93.647,93.581,19.19892157]
[1770235945095,9.6307,93.63,93.581,19.19892157]
[1770235946391,9.6297,93.639,93.581,19.19892157]
[1770235947001,19.94580285,93.639,93.581,19.19892157]
[1770235947890,19.94580285,93.639,93.563,9.6375]
[1770235948190,19.94580285,93.639,93.562,19.19892157]
[1770235948597,9.6326,93.611,93.562,19.19892157]
[1770235950298,19.94580285,93.623,93.521,19.19892157]
[1770235950695,9.6345,93.593,93.542,19.19892157]
[1770235951696,9.6337,93.601,93.543,9.6396]
[1770235952104,19.94580285,93.621,93.554,19.19892157]
[1770235953003,19.94580285,93.621,93.522,19.19892157]
[1770235953996,9.6376,93.563,93.522,19.19892157]
[1770235955794,9.6365,93.574,93.522,19.19892157]
[1770235957507,9.6372,93.566,93.522,19.19892157]
[1770235957801,19.94580285,93.565,93.499,19.19892157]
[1770235958207,9.6365,93.573,93.503,19.19892157]
[1770235958397,19.94580285,93.583,93.503,19.19892157]
[1770235960106,9.6364,93.575,93.517,19.19892157]
[1770235960808,19.94580285,93.571,93.495,19.19892157]
[1770235961402,19.94580285,93.571,93.505,19.19892157]
[1770235962211,9.6368,93.57,93.507,19.19892157]
[1770235963409,9.6368,93.57,93.512,19.19892157]
[1770235963714,19.94580285,93.627,93.524,19.19892157]
[1770235964319,19.94580285,93.602,93.536,19.19892157]
[1770235964922,9.6355,93.583,93.536,19.19892157]
[1770235965921,9.6355,93.583,93.521,9.6418]
[1770235965922,19.94580285,93.571,93.514,19.19892157]
[1770235966318,19.94580285,93.616,93.514,19.19892157]
[1770235967223,19.94580285,93.585,93.514,19.19892157]
[1770235968119,29.58110285,93.585,93.516,19.19892157]
[1770235968420,19.94580285,93.584,93.516,19.19892157]
[1770235968618,9.6358,93.58,93.516,19.19892157]
[1770235968822,19.94580285,93.584,93.516,19.19892157]
[1770235969320,9.6368,93.57,93.516,19.19892157]
[1770235969915,29.58170285,93.579,93.516,19.19892157]
[1770235970112,19.94580285,93.579,93.516,19.19892157]
[1770235970712,19.94580285,93.579,93.518,19.19892157]
[1770235971125,9.6358,93.58,93.518,19.19892157]
[1770235971623,9.6346,93.591,93.521,19.19892157]
[1770235972322,19.94580285,93.597,93.525,19.19892157]
[1770235972520,9.6334,93.604,93.527,19.19892157]
[1770235972721,9.6334,93.604,93.544,9.6394]
[1770235973027,9.6334,93.604,93.52,8.01700311]
[1770235973028,29.57980285,93.598,93.545,19.19892157]
[1770235973424,19.94580285,93.639,93.548,19.19892157]
[1770235973621,19.94580285,93.62,93.548,19.19892157]
[1770235974423,9.6336,93.601,93.548,19.19892157]
[1770235975024,19.94580285,93.62,93.548,19.19892157]
[1770235975416,9.6344,93.593,93.548,19.19892157]
[1770235976627,9.6352,93.586,93.548,19.19892157]
[1770235977124,9.6341,93.597,93.548,19.19892157]
[1770235977616,17.46688839,93.604,93.548,19.19892157]
[1770235977817,9.6337,93.601,93.549,9.6389]
[1770235978216,9.6337,93.601,93.548,19.19892157]
[1770235978217,17.46688839,93.604,93.548,19.19892157]
[1770235979925,9.6344,93.594,93.548,19.19892157]
[1770235980228,9.6336,93.602,93.548,19.19892157]
[1770235980426,17.62331925,93.62,93.548,19.19892157]
[1770235980625,17.62331925,93.655,93.551,17.05170238]
[1770235980820,17.62331925,93.655,93.524,64.60713766]
[1770235980821,17.62331925,93.625,93.56,17.05170238]
[1770235981123,17.62331925,93.625,93.512,19.8212185]
[1770235981124,17.62331925,93.619,93.529,17.05170238]
[1770235981430,17.62331925,93.584,93.513,17.05170238]
[1770235982117,9.6362,93.576,93.513,26.69440238]
[1770235982324,17.62331925,93.584,93.485,17.05170238]
[1770235982930,9.637,93.568,93.505,17.05170238]
[1770235983130,17.62331925,93.567,93.505,17.05170238]
[1770235984029,8.01700311,93.56,93.468,17.05170238]
[1770235984330,17.62331925,93.579,93.471,17.05170238]
[1770235985235,17.62331925,93.543,93.471,17.05170238]
[1770235985429,17.62331925,93.561,93.471,17.05170238]
[1770235985828,17.62331925,93.561,93.472,17.05170238]
[1770235986131,17.62331925,93.561,93.478,9.89658835]
[1770235986333,17.62331925,93.561,93.481,17.05170238]
[1770235986827,17.62331925,93.585,93.494,17.05170238]
[1770235987029,17.62331925,93.585,93.511,17.05170238]
[1770235988032,17.62331925,93.602,93.543,17.05170238]
[1770235988328,17.62331925,93.602,93.526,17.05170238]
[1770235988527,17.62331925,93.597,93.526,17.05170238]
[1770235989234,17.62331925,93.597,93.508,17.05170238]
[1770235989533,17.62331925,93.583,93.511,17.05170238]
[1770235991032,17.62331925,93.583,93.512,17.05170238]
[1770235991430,17.62331925,93.583,93.514,17.05170238]
[1770235991626,17.62331925,93.583,93.516,17.05170238]
[1770235992836,17.62331925,93.583,93.521,9.6417]
[1770235993030,17.62331925,93.583,93.521,26.69340238]
[1770235993236,17.62331925,93.583,93.521,17.05170238]
[1770235993436,17.62331925,93.583,93.504,17.05170238]
[1770235993736,17.62331925,93.58,93.504,17.05170238]
[1770235994736,17.62331925,93.58,93.505,9.6435]
[1770235994928,17.62331925,93.58,93.506,17.05170238]
[1770235995728,17.62331925,93.58,93.509,17.05170238]
[1770235996535,17.62331925,93.58,93.512,17.05170238]
[1770235998239,17.62331925,93.58,93.5,8.01700311]
[1770235998240,17.62331925,93.578,93.5,17.05170238]
[1770235999234,9.6378,93.561,93.5,17.05170238]
[1770235999637,27.26111925,93.561,93.5,17.05170238]
[1770236000241,17.62331925,93.561,93.5,17.05170238]
[1770236000739,17.62331925,93.598,93.518,17.05170238]
[1770236000939,17.62331925,93.598,93.521,17.05170238]
[1770236001442,17.62331925,93.584,93.521,17.05170238]
[1770236003941,15.00890152,93.58,93.521,17.05170238]
[1770236004534,9.637,93.569,93.521,17.05170238]
[1770236004741,24.64590152,93.569,93.521,17.05170238]
[1770236005042,15.00890152,93.568,93.502,15.83456016]
[1770236005244,15.00890152,93.568,93.506,9.6433]
[1770236005540,15.00890152,93.568,93.507,15.83456016]
[1770236006645,15.00890152,93.568,93.495,9.6444]
[1770236006843,15.00890152,93.568,93.496,15.83456016]
[1770236007042,9.6385,93.554,93.496,15.83456016]
[1770236007438,15.00890152,93.553,93.479,15.83456016]
[1770236007639,15.00890152,93.538,93.479,15.83456016]
[1770236008744,15.00890152,93.538,93.482,15.83456016]
[1770236009646,15.00890152,93.532,93.464,15.83456016]
[1770236010241,15.00890152,93.532,93.466,15.83456016]
[1770236010450,15.00890152,93.556,93.467,15.83456016]
[1770236010742,9.6392,93.547,93.479,15.83456016]
[1770236010945,15.00890152,93.556,93.479,15.83456016]
[1770236011547,15.00890152,93.555,93.491,15.83456016]
[1770236011844,26.66,93.557,93.491,15.83456016]
[1770236012246,26.66,93.557,93.502,15.83456016]
[1770236013244,36.2982,93.557,93.506,15.83456016]
[1770236013851,41.66890152,93.557,93.506,15.83456016]
[1770236015541,26.66,93.557,93.506,15.83456016]
[1770236015941,15.00890152,93.578,93.506,15.83456016]
[1770236016141,15.00890152,93.578,93.509,15.83456016]
[1770236016741,15.00890152,93.578,93.525,9.6414]
[1770236017540,15.00890152,93.578,93.503,9.89658835]
[1770236017748,9.6381,93.558,93.49,17.23912183]
[1770236018350,9.6371,93.567,93.502,17.23912183]
[1770236018750,24.53,93.574,93.502,17.23912183]
[1770236019350,9.6371,93.568,93.502,17.23912183]
[1770236020048,24.53,93.574,93.503,17.11450018]
[1770236021854,24.53,93.574,93.514,9.6425]
[1770236022048,24.53,93.574,93.503,17.11450018]
[1770236022555,24.53,93.574,93.531,9.6407]
[1770236023553,24.53,93.574,93.522,26.80348074]
[1770236023856,24.53,93.574,93.522,17.16178074]
[1770236024155,24.53,93.574,93.524,17.09910949]
[1770236025451,24.53,93.574,93.528,17.11066234]
[1770236026158,8.02609163,93.65,93.528,17.11066234]
[1770236026655,1.85980889,93.653,93.553,17.13280615]
[1770236026852,8.02609163,93.67,93.553,17.13280615]
[1770236027157,9.6313,93.623,93.557,17.13280615]
[1770236027547,19.2535,93.668,93.557,17.13280615]
[1770236027747,9.6322,93.615,93.557,17.13280615]
[1770236027950,9.91123835,93.663,93.557,17.13280615]
[1770236028153,8.02609163,93.65,93.557,17.13280615]
[1770236028655,8.02609163,93.65,93.54,17.09680168]
[1770236028656,17.93732998,93.65,93.54,17.09680168]
[1770236028855,8.02609163,93.63,93.54,17.09680168]
[1770236030562,29.93,93.649,93.543,17.12386743]
[1770236031254,9.6328,93.609,93.545,17.13500561]
[1770236031461,29.93,93.649,93.545,17.13500561]
[1770236032163,29.93,93.649,93.576,17.13722247]
[1770236032765,9.632,93.617,93.559,17.14817989]
[1770236033166,29.93,93.649,93.559,17.14817989]
[1770236033361,9.634,93.597,93.541,9.6397]
[1770236033664,9.634,93.597,93.542,17.14817989]
[1770236034064,9.635,93.588,93.542,17.14817989]
[1770236034360,29.93,93.649,93.501,17.18178669]
[1770236034361,8.02609163,93.62,93.501,17.18178669]
[1770236034560,9.6343,93.594,93.532,9.6407]
[1770236035167,9.6352,93.586,93.532,9.6407]
[1770236035360,8.02609163,93.62,93.532,9.6407]
[1770236035662,19.2609,93.632,93.53,17.18178669]
[1770236035865,8.02609163,93.64,93.53,17.18178669]
[1770236036559,9.6324,93.614,93.547,17.10426321]
[1770236036761,8.02609163,93.64,93.547,17.10426321]
[1770236037557,8.02609163,93.64,93.52,8.02609163]
[1770236037558,9.632,93.617,93.553,17.1153186]
[1770236038266,9.6328,93.609,93.556,17.20769548]
[1770236039066,8.02609163,93.64,93.537,17.22842008]
[1770236040266,19.2607,93.633,93.537,17.22842008]
[1770236040573,8.02609163,93.64,93.537,17.22842008]
[1770236040874,8.02609163,93.64,93.549,17.22190426]
[1770236041076,19.2561,93.656,93.549,17.22190426]
[1770236041676,9.6312,93.624,93.562,17.22026631]
[1770236041878,19.2561,93.656,93.562,17.22026631]
[1770236042171,9.6319,93.618,93.562,17.22026631]
[1770236042370,11.81784393,93.673,93.562,17.22026631]
[1770236042371,8.02609163,93.67,93.562,17.22026631]
[1770236043070,21.38,93.703,93.587,17.23013093]
[1770236043071,24.85,93.669,93.587,17.23013093]
[1770236043668,9.6299,93.638,93.587,17.23013093]
[1770236044077,24.85,93.669,93.587,17.23013093]
[1770236044878,24.85,93.669,93.603,17.23798306]
[1770236045377,24.85,93.669,93.607,17.23798306]
[1770236046371,9.6273,93.663,93.61,17.24443387]
[1770236046677,8.02609163,93.66,93.541,17.24443387]
[1770236046871,8.02609163,93.66,93.564,17.25396905]
[1770236047077,9.6301,93.635,93.564,17.25396905]
[1770236047280,24.85,93.669,93.564,17.25396905]
[1770236047575,9.629,93.646,93.578,17.25396905]
[1770236048675,9.6275,93.661,93.591,17.23502293]
[1770236049773,24.85,93.669,93.604,17.21553213]
[1770236049975,24.85,93.669,93.581,17.21553213]
[1770236050378,9.6292,93.644,93.581,17.21553213]
[1770236051386,9.6301,93.636,93.581,17.21553213]
[1770236051785,24.85,93.669,93.581,17.21553213]
[1770236052580,9.629,93.647,93.583,17.19554941]
[1770236052882,24.85,93.669,93.583,17.19554941]
[1770236053079,9.628,93.656,93.588,17.20525743]
[1770236053677,24.85,93.669,93.595,17.20525743]
[1770236054281,24.85,93.669,93.597,17.13636515]
[1770236054976,34.4766,93.669,93.612,9.6324]
[1770236055379,24.85,93.669,93.612,9.6324]
[1770236055772,24.85,93.669,93.599,17.1678377]
[1770236058183,24.85,93.669,93.61,17.13157518]
[1770236059478,24.85,93.669,93.615,17.14154822]
[1770236061688,9.6275,93.661,93.615,17.14154822]
[1770236062592,24.85,93.669,93.617,17.09425797]
[1770236064595,9.6267,93.668,93.619,17.12201575]
[1770236066385,9.6278,93.658,93.619,17.12201575]
[1770236066590,24.85,93.669,93.601,17.20277111]
[1770236066993,24.85,93.669,93.622,17.21186576]
[1770236067995,24.85,93.669,93.601,17.16215317]
[1770236070298,24.85,93.669,93.635,9.63]
[1770236070598,9.95879509,93.771,93.661,13.566304]
[1770236070799,9.95879509,93.777,93.661,13.566304]
[1770236070993,1.85698049,93.773,93.661,13.566304]
[1770236071201,9.6195,93.738,93.681,9.6254]
[1770236072097,9.6184,93.749,93.681,9.6254]
[1770236072292,19.2309,93.778,93.678,13.48501246]
[1770236072497,9.6205,93.729,93.678,13.48501246]
[1770236073194,9.6194,93.74,93.678,13.48501246]
[1770236074298,9.6184,93.749,93.68,13.51693121]
[1770236075802,9.6184,93.749,93.681,9.6253]
[1770236075992,12.15,93.761,93.663,13.54843412]
[1770236076193,8.00975681,93.76,93.663,13.54843412]
[1770236076503,9.6211,93.723,93.663,13.54843412]
[1770236077099,9.6221,93.714,93.644,13.55745861]
[1770236078703,9.6221,93.714,93.647,9.6288]
[1770236079104,9.6221,93.714,93.648,13.57691286]
[1770236079604,9.623,93.705,93.648,13.57691286]
[1770236079805,8.00975681,93.73,93.648,13.57691286]
[1770236080004,8.00975681,93.73,93.632,13.59770848]
[1770236082197,8.00975681,93.71,93.616,13.61928658]
[1770236082797,9.6262,93.673,93.616,13.61928658]
[1770236083603,9.625,93.685,93.618,9.6318]
[1770236084104,9.625,93.685,93.619,13.64212069]
[1770236084300,9.6238,93.697,93.63,13.64212069]
[1770236084896,9.6227,93.707,93.641,13.65018877]
[1770236085096,8.00975681,93.71,93.623,13.65018877]
[1770236086600,9.6264,93.671,93.623,13.65018877]
[1770236087712,19.2399,93.734,93.605,9.6331]
[1770236087713,8.00975681,93.69,93.605,13.67236218]
[1770236087912,8.00975681,93.69,93.587,13.69952965]
[1770236088208,9.6295,93.642,93.587,13.69952965]
[1770236090206,8.00975681,93.67,93.587,13.69952965]
[1770236090207,9.6285,93.651,93.587,13.69952965]
[1770236090508,8.00975681,93.69,93.587,13.69952965]
[1770236090706,8.00975681,93.69,93.606,13.70344544]
[1770236090902,8.00975681,93.71,93.606,13.70344544]
[1770236091503,9.6256,93.679,93.614,9.6322]
[1770236091906,9.90664991,93.725,93.615,13.70195909]
[1770236092210,9.6239,93.696,93.632,13.70195909]
[1770236092710,9.90664991,93.725,93.632,13.70195909]
[1770236092909,19.2404,93.732,93.616,13.70932862]
[1770236092910,8.00975681,93.71,93.616,13.70932862]
[1770236093805,9.6259,93.676,93.616,13.70932862]
[1770236094310,27.25465681,93.71,93.616,13.70932862]
[1770236095104,9.6261,93.675,93.617,23.36676657]
[1770236095507,9.6261,93.675,93.618,13.73486657]
[1770236096404,9.6252,93.683,93.618,13.73486657]
[1770236096609,8.00975681,93.69,93.603,13.7446049]
[1770236096807,9.90664991,93.688,93.603,13.7446049]
[1770236097010,17.91640672,93.69,93.603,13.7446049]
[1770236097309,9.90664991,93.687,93.603,13.7446049]
[1770236097615,8.00975681,93.69,93.603,13.7446049]
[1770236097911,9.628,93.656,93.603,13.7446049]
[1770236098804,8.00975681,93.69,93.603,13.7446049]
[1770236099729,9.6271,93.664,93.603,13.7446049]
[1770236100011,9.90664991,93.687,93.603,13.7446049]
[1770236100310,9.90664991,93.688,93.603,13.7446049]
[1770236100705,9.628,93.656,93.603,13.7446049]
[1770236100903,9.90664991,93.688,93.603,13.7446049]
[1770236101109,9.90664991,93.683,93.603,13.7446049]
[1770236101304,8.00975681,93.67,93.585,13.75676829]
[1770236101505,9.90664991,93.688,93.585,13.75676829]
[1770236101704,8.00975681,93.69,93.585,13.75676829]
[1770236101904,9.6262,93.674,93.614,13.8453419]
[1770236102108,9.90664991,93.708,93.614,13.8453419]
[1770236102509,9.6261,93.675,93.616,13.8453419]
[1770236103112,9.6251,93.684,93.619,13.85140098]
[1770236103616,9.6272,93.664,93.619,13.85140098]
[1770236103816,9.90664991,93.703,93.619,13.85140098]
[1770236104012,9.90664991,93.707,93.619,13.85140098]
[1770236104213,9.626,93.676,93.619,13.85140098]
[1770236104814,9.90664991,93.707,93.619,13.85140098]
[1770236105719,9.90664991,93.713,93.623,13.88619831]
[1770236105921,8.00975681,93.73,93.623,13.88619831]
[1770236106216,9.90664991,93.729,93.623,13.88619831]
[1770236106422,9.6239,93.696,93.623,13.88619831]
[1770236107622,9.6246,93.689,93.627,13.89865009]
[1770236108523,9.6231,93.704,93.643,13.90698349]
[1770236108725,9.90664991,93.746,93.643,13.90698349]
[1770236108913,9.90664991,93.746,93.6,19.2674]
[1770236108914,9.6222,93.712,93.652,13.91248655]
[1770236109117,9.93699859,93.735,93.652,13.91248655]
[1770236109320,8.00975681,93.73,93.652,13.91248655]
[1770236109620,21.6223,93.711,93.652,13.91248655]
[1770236109918,12.0,93.711,93.652,13.91248655]
[1770236110722,9.6232,93.703,93.652,13.91248655]
[1770236110912,12.0,93.711,93.652,13.91248655]
[1770236111320,12.0,93.711,93.637,13.92655188]
[1770236112324,9.6241,93.694,93.637,13.92655188]
[1770236113429,9.6251,93.684,93.637,13.92655188]
[1770236114728,9.6259,93.677,93.617,13.96531204]
[1770236116034,7.9768147,93.73,93.668,9.6266]
[1770236116223,7.9768147,93.73,93.641,8.52962342]
[1770236116730,7.9768147,93.729,93.644,8.52962342]
[1770236117325,7.9768147,93.71,93.646,8.52962342]
[1770236118227,8.00975681,93.73,93.657,8.52962342]
[1770236118228,7.9768147,93.729,93.657,8.52962342]
[1770236119631,7.9768147,93.729,93.661,8.52962342]
[1770236120124,7.9768147,93.726,93.663,8.52962342]
[1770236121836,7.9768147,93.783,93.714,8.52962342]
[1770236122032,7.9768147,93.783,93.656,149.768]
[1770236122033,7.9768147,93.783,93.698,8.52962342]
[1770236122329,7.9768147,93.77,93.698,8.52962342]
[1770236123030,7.9768147,93.764,93.698,8.52962342]
[1770236123230,7.9768147,93.764,93.627,162.97662524]
[1770236123231,7.9768147,93.764,93.68,8.52962342]
[1770236123729,7.9768147,93.762,93.681,8.52962342]
[1770236124329,16.67456257,93.745,93.681,8.52962342]
[1770236124728,7.05566257,93.745,93.681,8.52962342]
[1770236125637,7.05566257,93.745,93.683,6.67523332]
[1770236125830,7.05566257,93.755,93.683,6.67523332]
[1770236126538,7.05566257,93.755,93.68,8.00975681]
[1770236126539,7.05566257,93.755,93.685,6.67523332]
[1770236126938,9.6165,93.768,93.71,8.00975681]
[1770236128439,9.6165,93.768,93.71,7.99221771]
[1770236128835,9.6164,93.769,93.71,7.99221771]
[1770236129041,7.05566257,93.768,93.71,7.99221771]
[1770236129741,7.05566257,93.764,93.71,7.99221771]
[1770236130641,7.05566257,93.764,93.72,7.99221771]
[1770236131244,7.05566257,93.78,93.721,6.67523332]
[1770236132646,9.6153,93.779,93.721,6.67523332]
[1770236132944,16.67096257,93.779,93.721,6.67523332]
[1770236133950,7.05566257,93.778,93.721,6.67523332]
[1770236134349,7.05566257,93.776,93.721,6.67523332]
[1770236136946,7.05566257,93.794,93.724,6.67523332]
[1770236137544,7.05566257,93.792,93.727,6.67523332]
[1770236139656,1.85642574,93.804,93.727,6.67523332]
[1770236139657,7.05566257,93.789,93.727,6.67523332]
[1770236140257,9.6147,93.786,93.728,6.67523332]
[1770236140451,7.05566257,93.785,93.728,6.67523332]
[1770236141561,9.6157,93.776,93.728,6.67523332]
[1770236141855,7.05566257,93.775,93.728,6.67523332]
[1770236142561,7.05566257,93.803,93.741,6.67523332]
[1770236143658,1.85603465,93.834,93.741,6.67523332]
[1770236143860,1.85603465,93.834,93.74,7.99221771]
[1770236143861,7.05566257,93.833,93.752,6.67523332]
[1770236144757,7.05566257,93.822,93.761,6.67523332]
[1770236144954,7.05566257,93.822,93.771,6.67523332]
[1770236146257,7.05566257,93.833,93.771,6.67523332]
[1770236146760,9.6099,93.832,93.771,6.67523332]
[1770236146967,7.05566257,93.831,93.771,6.67523332]
[1770236147766,9.6101,93.83,93.771,6.67523332]
[1770236148062,7.05566257,93.829,93.771,6.67523332]
[1770236148366,7.05566257,93.829,93.695,9.87704357]
[1770236148367,7.05566257,93.81,93.756,6.67523332]
[1770236149773,9.6128,93.804,93.756,6.67523332]
[1770236150660,7.05566257,93.794,93.738,6.67523332]
[1770236151462,9.6146,93.787,93.738,6.67523332]
[1770236151669,7.05566257,93.794,93.738,6.67523332]
[1770236152370,7.05566257,93.792,93.738,6.67523332]
[1770236152770,9.6149,93.783,93.738,6.67523332]
[1770236153167,7.05566257,93.792,93.738,6.67523332]
[1770236153368,7.05566257,93.792,93.719,6.67523332]
[1770236153963,59.34,93.869,93.751,5.90592319]
[1770236153964,6.01549042,93.832,93.751,5.90592319]
[1770236154172,6.01549042,93.832,93.652,149.7746]
[1770236154173,6.01549042,93.832,93.735,5.90592319]
[1770236155662,9.6157,93.776,93.735,5.90592319]
[1770236155866,9.6157,93.776,93.735,2.80367376]
[1770236156368,9.6153,93.779,93.735,2.80367376]
[1770236160962,6.01549042,93.786,93.735,2.80367376]
[1770236161368,9.6143,93.79,93.735,2.80367376]
[1770236161674,6.04181799,93.802,93.735,2.80367376]
[1770236162073,6.04181799,93.818,93.751,6.12582518]
[1770236162462,9.6132,93.8,93.751,6.12582518]
[1770236162874,6.04181799,93.802,93.751,6.12582518]
[1770236163173,6.04181799,93.802,93.67,19.253]
[1770236163174,6.04181799,93.802,93.711,6.12582518]
[1770236163672,9.6144,93.788,93.72,9.6213]
[1770236163864,9.6144,93.788,93.721,6.12582518]
[1770236164972,9.6144,93.788,93.727,6.12582518]
[1770236165773,9.6144,93.788,93.73,6.12582518]
[1770236166366,9.6144,93.788,93.731,9.6202]
[1770236166574,9.6144,93.788,93.732,6.12582518]
[1770236167673,6.04181799,93.787,93.71,7.99221771]
[1770236167971,6.04181799,93.787,93.711,6.12582518]
[1770236168374,9.6172,93.761,93.711,6.12582518]
[1770236168676,6.04181799,93.761,93.711,6.12582518]
[1770236168875,6.04181799,93.761,93.691,6.12582518]
[1770236169180,9.6181,93.752,93.691,6.12582518]
[1770236169969,9.6189,93.744,93.691,6.12582518]
[1770236171075,9.6198,93.736,93.691,6.12582518]
[1770236172373,9.6198,93.736,93.7,2.98586682]
[1770236172978,9.6198,93.736,93.691,6.12582518]
[1770236174882,6.04181799,93.719,93.653,6.12582518]